bitfinex-derivatives/quotes_SOLF0:USTF0_20240820
["timestamp","ask_amount","ask_price","bid_price","bid_amount"]
[1724167233385,0.04786056,142.32,142.24,49.08289051]
[1724167233681,0.04786056,142.32,142.3,3.5127]
[1724167234272,0.04786056,142.32,142.24,45.6339]
[1724167234478,0.04786056,142.32,142.25,1.18507169]
[1724167235488,0.04786056,142.32,142.3,3.5127]
[1724167235787,0.04786056,142.32,142.24,49.22864311]
[1724167235984,0.04786056,142.32,142.25,1.18501351]
[1724167236187,0.04786056,142.32,142.31,3.5126]
[1724167239884,43.1231,142.39,142.3,40.45]
[1724167240081,40.45,142.39,142.3,40.45]
[1724167240585,40.45,142.39,142.36,3.5112]
[1724167240883,40.45,142.39,142.36,0.04745692]
[1724167240884,40.50085091,142.39,142.36,0.04745692]
[1724167241476,44.01165091,142.39,142.36,3.55875692]
[1724167242292,3.5109,142.38,142.36,0.04745692]
[1724167242793,44.01155091,142.39,142.36,3.55865692]
[1724167243382,44.01155091,142.39,142.37,3.5111]
[1724167243781,40.50085091,142.39,142.37,3.5111]
[1724167244182,40.50085091,142.39,142.36,0.04745692]
[1724167244586,40.50085091,142.39,142.38,3.5109]
[1724167244787,0.05085091,142.39,142.38,3.5109]
[1724167250491,40.50085091,142.39,142.36,0.04745692]
[1724167250694,40.45,142.37,142.36,0.04745692]
[1724167251592,40.45,142.37,142.26,42.9578]
[1724167251993,40.45,142.37,142.27,1.18477408]
[1724167252185,40.45,142.37,142.28,3.45631625]
[1724167252594,40.45,142.37,142.26,42.9578]
[1724167252884,0.04453432,142.34,142.27,1.18491174]
[1724167253594,0.04453432,142.34,142.28,3.59071906]
[1724167254089,40.45,142.32,142.24,40.45]
[1724167254297,0.05360801,142.3,142.23,3.55315483]
[1724167254484,0.05360801,142.3,142.24,1.18516415]
[1724167254790,0.05360801,142.3,142.29,3.5131]
[1724167254998,0.05360801,142.3,142.24,3.44151534]
[1724167255196,40.50360801,142.3,142.25,1.18518074]
[1724167255403,40.50360801,142.3,142.24,3.44151534]
[1724167255691,40.45,142.37,142.27,40.45]
[1724167255889,45.8216,142.37,142.27,40.45]
[1724167256091,40.45,142.35,142.25,47.478]
[1724167256295,40.45,142.35,142.26,1.18502369]
[1724167256497,43.95200407,142.35,142.26,1.18502369]
[1724167256898,0.05101914,142.32,142.31,3.5126]
[1724167257197,0.05101914,142.32,142.29,0.04501501]
[1724167257398,40.45,142.31,142.3,3.5128]
[1724167259303,0.05101914,142.32,142.31,3.5126]
[1724167262204,40.50101914,142.32,142.29,0.04501501]
[1724167262406,2.5646,142.31,142.29,0.04501501]
[1724167263202,6.0772,142.31,142.29,0.04501501]
[1724167263510,2.5646,142.31,142.29,0.04501501]
[1724167263705,0.05101914,142.32,142.29,0.04501501]
[1724167264011,0.05101914,142.32,142.31,3.5126]
[1724167265805,0.05101914,142.32,142.29,0.04501501]
[1724167265806,40.50101914,142.32,142.29,0.04501501]
[1724167266195,40.50101914,142.32,142.29,3.55791501]
[1724167267607,44.01341914,142.32,142.29,3.55791501]
[1724167268911,40.45,142.3,142.21,2.5186]
[1724167269213,40.45,142.33,142.21,2.5186]
[1724167269214,40.45,142.28,142.21,2.5186]
[1724167269509,2.6076,142.29,142.22,40.45]
[1724167270009,0.05394551,142.27,142.23,1.18551361]
[1724167270604,0.05394551,142.27,142.26,3.5138]
[1724167270806,40.45,142.34,142.25,40.45]
[1724167271002,6.237,142.35,142.25,40.45]
[1724167271513,40.45,142.34,142.23,42.9858]
[1724167271712,40.45,142.32,142.24,1.1853396]
[1724167272013,0.04955165,142.3,142.27,0.04523679]
[1724167272612,0.04955165,142.3,142.29,3.5131]
[1724167273605,0.04955165,142.3,142.28,3.5132]
[1724167273817,0.04955165,142.3,142.08,347.016]
[1724167273818,32.35,142.28,142.18,2.6313]
[1724167274003,32.35,142.28,142.19,3.55285444]
[1724167274207,35.8635,142.28,142.19,3.55285444]
[1724167274607,32.35,142.28,142.25,3.514]
[1724167275205,32.35,142.28,142.19,35.90285444]
[1724167275705,0.05269714,142.28,142.27,3.5136]
[1724167276417,2.7172,142.34,142.31,3.5123]
[1724167276811,2.7172,142.34,142.26,40.48]
[1724167276812,43.1972,142.34,142.26,40.48]
[1724167277106,3.5127,142.31,142.22,40.48]
[1724167277308,40.48,142.3,142.25,3.5139]
[1724167277520,0.04515084,142.28,142.25,0.05304953]
[1724167277921,0.04515084,142.28,142.27,3.5136]
[1724167278410,0.04515084,142.28,142.26,3.5137]
[1724167278618,0.04515084,142.28,142.25,0.05304953]
[1724167279213,0.04515084,142.28,142.26,3.5136]
[1724167279409,0.04515084,142.28,142.25,0.05304953]
[1724167279824,2.7172,142.34,142.27,40.48]
[1724167280119,2.7172,142.34,142.25,40.48]
[1724167280323,40.48,142.33,142.23,40.48]
[1724167280621,40.48,142.31,142.24,1.18532704]
[1724167280819,40.48,142.31,142.27,3.5134]
[1724167281415,43.9928,142.31,142.27,3.5134]
[1724167281726,0.04754091,142.29,142.27,3.5134]
[1724167282314,0.04754091,142.29,142.28,3.5133]
[1724167284720,0.04754091,142.29,142.26,0.05370785]
[1724167285622,3.57407602,142.28,142.26,3.56740785]
[1724167286227,3.56074091,142.29,142.26,3.56740785]
[1724167286421,0.04754091,142.29,142.27,3.5135]
[1724167286719,0.04754091,142.29,142.26,0.05370785]
[1724167286927,7.06544878,142.28,142.26,0.05370785]
[1724167287123,3.5135,142.28,142.26,0.05370785]
[1724167287723,3.56074091,142.29,142.26,3.56750785]
[1724167288025,0.04754091,142.29,142.26,0.05370785]
[1724167288423,0.04754091,142.29,142.27,3.5134]
[1724167289021,0.04754091,142.29,142.28,3.5133]
[1724167289322,0.04754091,142.29,142.28,43.9933]
[1724167289527,40.48,142.38,142.28,43.9933]
[1724167289528,40.48,142.38,142.28,40.48]
[1724167289726,43.1816,142.38,142.28,40.48]
[1724167290226,3.48405571,142.37,142.28,40.48]
[1724167290428,3.48405571,142.37,142.33,3.512]
[1724167290628,2.77208935,142.35,142.33,3.512]
[1724167291033,0.04678935,142.35,142.34,3.5118]
[1724167291925,2.6592,142.42,142.34,3.5118]
[1724167291926,46.59826363,142.42,142.34,40.48]
[1724167292125,5.43193034,142.41,142.34,40.48]
[1724167292435,3.5102,142.41,142.34,40.48]
[1724167292732,3.5102,142.41,142.38,3.5108]
[1724167293123,3.55918279,142.41,142.38,3.56356876]
[1724167293430,3.55918279,142.41,142.38,0.05276876]
[1724167293628,3.5104,142.4,142.38,0.05276876]
[1724167297531,3.55918279,142.41,142.38,3.56356876]
[1724167299727,0.04898279,142.41,142.38,0.05276876]
[1724167300533,0.04898279,142.41,142.4,3.5104]
[1724167300836,2.6442,142.46,142.44,3.5094]
[1724167301230,35.8387,142.47,142.44,3.5094]
[1724167301437,32.33,142.47,142.39,32.33]
[1724167301635,32.33,142.44,142.35,2.5286]
[1724167301837,5.1957,142.49,142.4,32.33]
[1724167302140,34.9708,142.49,142.4,32.33]
[1724167302431,37.5257,142.49,142.4,32.33]
[1724167302632,3.5085,142.48,142.44,3.5092]
[1724167302838,45.6057,142.49,142.44,3.5092]
[1724167303423,3.5087,142.47,142.43,3.5095]
[1724167303627,40.41,142.47,142.37,40.41]
[1724167303828,40.41,142.47,142.45,0.0518118]
[1724167304028,43.9187,142.47,142.45,0.0518118]
[1724167304440,43.9187,142.47,142.43,3.5096]
[1724167305138,43.97081474,142.47,142.44,3.5093]
[1724167305437,43.97081474,142.47,142.37,40.41]
[1724167305438,43.97081474,142.47,142.45,0.05344046]
[1724167305635,3.5089,142.46,142.45,0.05344046]
[1724167305839,40.41,142.47,142.37,40.41]
[1724167306233,3.5093,142.45,142.41,3.5099]
[1724167306836,0.0456782,142.44,142.42,0.04812507]
[1724167307741,3.5550782,142.44,142.42,0.04812507]
[1724167308126,0.0456782,142.44,142.42,0.04812507]
[1724167308331,3.5096,142.43,142.42,0.04812507]
[1724167308732,40.41,142.43,142.33,40.41]
[1724167308937,5.97553114,142.42,142.33,40.41]
[1724167309243,2.5176,142.42,142.39,3.5104]
[1724167309641,2.56974944,142.42,142.39,0.04615982]
[1724167309941,2.56974944,142.42,142.4,3.5103]
[1724167311340,2.56974944,142.42,142.39,0.04615982]
[1724167311739,6.99949849,142.41,142.39,0.04615982]
[1724167312134,3.5102,142.41,142.39,0.04615982]
[1724167312339,6.07964944,142.42,142.39,3.55665982]
[1724167312740,9.53455677,142.42,142.39,3.55665982]
[1724167314149,3.5104,142.4,142.39,0.04615982]
[1724167314345,40.41,142.41,142.31,2.6442]
[1724167314547,3.5112,142.37,142.31,2.6442]
[1724167315146,2.6445,142.41,142.31,2.6442]
[1724167315354,2.6445,142.41,142.35,0.04658956]
[1724167315355,0.04462655,142.37,142.35,0.04658956]
[1724167315836,0.04462655,142.37,142.36,3.5113]
[1724167316954,0.04462655,142.37,142.35,3.55818956]
[1724167317156,0.04462655,142.37,142.35,0.04658956]
[1724167317548,0.04462655,142.37,142.35,3.55818956]
[1724167318642,3.5114,142.36,142.35,0.04658956]
[1724167318847,40.45462655,142.37,142.26,5.2989]
[1724167319048,40.45462655,142.37,142.27,4.7444031]
[1724167319355,3.5118,142.35,142.26,5.2989]
[1724167319550,40.45462655,142.37,142.31,3.5126]
[1724167319751,3.5118,142.35,142.31,3.5126]
[1724167320154,3.5575454,142.35,142.33,0.05298445]
[1724167320961,3.5575454,142.35,142.26,5.2989]
[1724167320962,3.49238641,142.34,142.26,5.2989]
[1724167321350,2.6877,142.34,142.26,5.2989]
[1724167321556,3.5123,142.33,142.29,3.5128]
[1724167322061,0.05208792,142.32,142.3,0.05164856]
[1724167322260,3.56448792,142.32,142.3,0.05164856]
[1724167322457,0.05208792,142.32,142.3,0.05164856]
[1724167322863,0.05208792,142.32,142.21,5.4373]
[1724167323054,40.41,142.33,142.22,41.59537356]
[1724167323257,3.5129,142.3,142.23,1.18537356]
[1724167323458,43.0138,142.33,142.24,40.41]
[1724167323656,43.0138,142.33,142.28,3.5133]
[1724167324157,0.05096932,142.32,142.27,3.5135]
[1724167324357,40.46096932,142.32,142.22,40.41]
[1724167324558,3.513,142.3,142.22,32.36]
[1724167324763,3.513,142.3,142.23,32.36]
[1724167325156,0.05386769,142.28,142.26,3.5136]
[1724167325658,0.05386769,142.28,142.21,5.4373]
[1724167325659,0.05386769,142.28,142.25,32.36]
[1724167325863,0.05386769,142.28,142.27,3.5136]
[1724167327465,0.05386769,142.28,142.27,35.8736]
[1724167327659,2.6877,142.34,142.32,3.5123]
[1724167327861,2.6877,142.34,142.29,32.36]
[1724167328155,2.6877,142.34,142.21,5.4373]
[1724167328156,3.5121,142.33,142.27,32.36]
[1724167328763,6.19946666,142.34,142.21,5.4373]
[1724167328764,32.36,142.32,142.28,3.5132]
[1724167328965,32.36,142.32,142.29,0.0504187]
[1724167328966,0.05377614,142.31,142.29,0.0504187]
[1724167329862,0.05377614,142.31,142.3,3.5128]
[1724167330069,32.36,142.39,142.3,32.36]
[1724167330266,3.5107,142.39,142.28,2.6558]
[1724167330453,3.5107,142.39,142.35,3.5115]
[1724167330964,2.5275,142.41,142.33,32.36]
[1724167331168,2.5275,142.41,142.36,0.05255307]
[1724167331169,0.04970888,142.38,142.36,0.05255307]
[1724167331766,32.36,142.37,142.36,0.05255307]
[1724167332471,40.47,142.38,142.28,43.1258]
[1724167332769,40.47,142.38,142.28,2.6558]
[1724167333164,3.5118,142.35,142.32,3.5122]
[1724167333669,3.5119,142.34,142.31,3.5124]
[1724167333870,0.04901632,142.35,142.32,0.05103285]
[1724167334175,3.43437655,142.34,142.32,0.05103285]
[1724167334367,3.5121,142.33,142.32,0.05103285]
[1724167334764,3.43437655,142.34,142.33,3.5121]
[1724167334966,3.43437655,142.34,142.32,0.05103285]
[1724167335364,6.94637655,142.34,142.32,0.05103285]
[1724167336070,0.04901632,142.35,142.32,0.05103285]
[1724167336661,0.04901632,142.35,142.34,3.5118]
[1724167340364,0.04901632,142.35,142.32,0.05103285]
[1724167340771,40.47,142.34,142.32,0.05103285]
[1724167341072,3.5121,142.33,142.32,0.05103285]
[1724167343472,3.5124,142.32,142.29,3.5129]
[1724167343866,3.5124,142.32,142.26,2.542]
[1724167344473,0.05306534,142.3,142.26,2.542]
[1724167345770,0.05306534,142.3,142.29,3.5131]
[1724167346161,0.05306534,142.3,142.26,2.542]
[1724167347072,0.05306534,142.3,142.29,3.5131]
[1724167347275,0.05306534,142.3,142.26,2.542]
[1724167347873,0.05306534,142.3,142.29,3.5131]
[1724167348071,0.05306534,142.3,142.22,42.9834]
[1724167348274,0.05306534,142.3,142.22,45.7098]
[1724167348773,0.05306534,142.3,142.28,3.5133]
[1724167349364,40.52306534,142.3,142.22,5.2398]
[1724167349576,40.52306534,142.3,142.21,225.0]
[1724167349869,0.04842995,142.27,142.25,3.5139]
[1724167351672,0.04842995,142.27,142.26,3.5138]
[1724167354375,0.04842995,142.27,142.19,3.55285444]
[1724167354680,0.04842995,142.27,142.18,5.2274]
[1724167354867,0.05348334,142.24,142.23,3.5146]
[1724167355073,0.05348334,142.24,142.18,5.2274]
[1724167355074,0.05348334,142.24,142.19,1.1858004]
[1724167355275,0.05348334,142.24,142.18,5.2274]
[1724167356180,0.05348334,142.24,142.21,3.5149]
[1724167357175,0.05348334,142.24,142.18,5.2274]
[1724167357875,0.05348334,142.24,142.22,3.5146]
[1724167358381,0.05348334,142.24,142.18,5.2274]
[1724167359371,0.05348334,142.24,142.18,45.6974]
[1724167359780,0.05348334,142.24,142.23,3.5146]
[1724167360583,0.05348334,142.24,142.18,45.6974]
[1724167360879,5.2727,142.33,142.2,40.47]
[1724167361076,40.47,142.28,142.18,5.2274]
[1724167361279,40.47,142.26,142.18,5.2274]
[1724167361775,43.9839,142.26,142.22,3.5147]
[1724167361979,0.04767632,142.23,142.21,0.04731613]
[1724167362282,0.04767632,142.23,142.21,3.56221613]
[1724167362883,0.04767632,142.23,142.21,0.04731613]
[1724167363278,0.04767632,142.23,142.21,3.56231613]
[1724167364373,0.04767632,142.23,142.22,3.5148]
[1724167365381,2.5872,142.27,142.21,0.04731613]
[1724167365382,2.5872,142.27,142.25,3.514]
[1724167365681,40.47,142.3,142.19,40.47]
[1724167365682,3.5132,142.29,142.19,43.0256]
[1724167365875,3.5132,142.29,142.25,3.5139]
[1724167366479,0.04453048,142.28,142.26,0.04694942]
[1724167366677,0.04453048,142.28,142.26,3.56074942]
[1724167366877,0.04453048,142.28,142.26,0.04694942]
[1724167367278,0.04453048,142.28,142.27,3.5136]
[1724167367884,0.04453048,142.28,142.26,0.04694942]
[1724167367885,3.56870222,142.34,142.31,3.5124]
[1724167368086,40.47,142.36,142.31,3.5124]
[1724167368390,40.47,142.34,142.25,43.1963]
[1724167368689,3.5122,142.33,142.29,3.5129]
[1724167368988,0.05379497,142.31,142.29,3.5129]
[1724167369186,0.05379497,142.31,142.3,3.5128]
[1724167372390,0.05379497,142.31,142.28,0.04438881]
[1724167372788,3.56639497,142.31,142.28,3.55748881]
[1724167373179,0.05379497,142.31,142.28,0.04438881]
[1724167373484,3.513,142.3,142.28,0.04438881]
[1724167373792,40.47,142.3,142.2,2.7172]
[1724167373978,3.5137,142.27,142.24,3.5141]
[1724167374184,40.47,142.3,142.2,5.263]
[1724167374391,7.6673,142.33,142.2,5.263]
[1724167374580,32.36,142.3,142.21,33.54566468]
[1724167374786,3.5135,142.28,142.25,3.5139]
[1724167375084,0.04728533,142.27,142.24,0.0488187]
[1724167375691,0.04728533,142.27,142.25,3.5141]
[1724167376593,5.1304,142.33,142.28,3.5133]
[1724167377294,3.5127,142.31,142.28,3.5133]
[1724167377681,3.56624203,142.31,142.28,3.56415206]
[1724167377887,0.05354203,142.31,142.28,0.05085206]
[1724167378385,0.05354203,142.31,142.29,3.5129]
[1724167379194,0.05354203,142.31,142.3,3.5128]
[1724167383300,0.05354203,142.31,142.29,3.513]
[1724167383499,0.05354203,142.31,142.28,0.05085206]
[1724167383891,3.513,142.3,142.28,0.05085206]
[1724167384195,40.50354203,142.31,142.28,0.05085206]
[1724167384396,3.5131,142.29,142.28,0.05085206]
[1724167385403,3.5142,142.25,142.17,7.0319]
[1724167385593,43.9642,142.25,142.15,43.1299]
[1724167385797,43.9642,142.25,142.17,1.18599714]
[1724167386089,3.48518621,142.26,142.18,1.18599714]
[1724167386290,40.45,142.27,142.16,2.712]
[1724167386487,3.5141,142.25,142.17,1.185958]
[1724167386704,0.05235412,142.23,142.21,0.04668564]
[1724167387093,0.05235412,142.23,142.22,3.5148]
[1724167387802,0.05235412,142.23,142.21,0.04668564]
[1724167387803,40.45,142.31,142.25,3.5139]
[1724167388099,40.45,142.31,142.21,40.45]
[1724167388404,6.208,142.3,142.27,3.5134]
[1724167388595,2.6951,142.3,142.23,40.45]
[1724167388796,0.05069943,142.28,142.27,3.5133]
[1724167391801,2.6767,142.34,142.31,3.5124]
[1724167392000,40.45,142.37,142.29,40.45]
[1724167392612,43.9612,142.37,142.33,3.512]
[1724167393206,3.56538101,142.36,142.34,0.04464739]
[1724167394501,0.05398101,142.36,142.34,3.55644739]
[1724167394813,2.5608,142.43,142.34,0.04464739]
[1724167394996,8.9374833,142.42,142.39,3.5106]
[1724167395198,2.5608,142.43,142.35,40.45]
[1724167395396,2.5608,142.43,142.35,43.89907484]
[1724167395602,2.5608,142.43,142.41,3.51]
[1724167395805,2.60671144,142.43,142.41,3.55779076]
[1724167396511,2.6028,142.46,142.41,0.04779076]
[1724167396702,40.45,142.48,142.41,0.04779076]
[1724167397005,3.44451211,142.49,142.41,0.04779076]
[1724167397214,43.0293,142.5,142.41,0.04779076]
[1724167397412,3.5083,142.49,142.44,3.5092]
[1724167397616,0.04962598,142.47,142.44,0.04465143]
[1724167398506,0.04962598,142.47,142.45,3.5091]
[1724167400508,0.04962598,142.47,142.46,3.5089]
[1724167401618,0.04962598,142.47,142.44,0.04465143]
[1724167402902,0.04962598,142.47,142.46,3.5089]
[1724167403112,5.1605,142.51,142.44,0.04465143]
[1724167403326,5.1605,142.51,142.48,3.5084]
[1724167403508,5.1605,142.51,142.43,43.88578927]
[1724167404108,0.05345574,142.48,142.46,0.05177123]
[1724167404511,0.05345574,142.48,142.47,3.5086]
[1724167405118,0.05345574,142.48,142.46,0.05177123]
[1724167405416,40.50345574,142.48,142.46,0.05177123]
[1724167405615,40.45,142.48,142.42,3.5098]
[1724167405801,40.45,142.48,142.37,43.1494]
[1724167406004,40.45,142.48,142.39,40.45]
[1724167406207,3.5086,142.48,142.44,3.5092]
[1724167406605,0.05392348,142.47,142.45,0.04464575]
[1724167407005,0.05392348,142.47,142.45,3.55364575]
[1724167408217,0.05392348,142.47,142.45,0.04464575]
[1724167408615,3.56282348,142.47,142.45,0.04464575]
[1724167409908,40.50392348,142.47,142.37,43.1494]
[1724167410114,40.45,142.47,142.37,43.1494]
[1724167410716,42.9728,142.47,142.37,43.1494]
[1724167410917,3.509,142.46,142.43,3.5096]
[1724167411318,3.56076292,142.46,142.43,3.5096]
[1724167411518,3.56076292,142.46,142.41,0.05206253]
[1724167411918,0.05176292,142.46,142.41,0.05206253]
[1724167412119,0.05176292,142.46,142.44,3.5092]
[1724167412912,0.05176292,142.46,142.45,3.5091]
[1724167413214,2.5608,142.51,142.44,0.05245182]
[1724167413415,2.5608,142.51,142.45,40.45]
[1724167414126,0.04605174,142.49,142.45,40.45]
[1724167414320,0.04605174,142.49,142.44,0.05245182]
[1724167414523,0.04605174,142.49,142.47,3.5084]
[1724167415513,0.04605174,142.49,142.48,3.5084]
[1724167421229,32.3,142.55,142.5,3.5077]
[1724167421230,3.5071,142.54,142.5,3.5077]
[1724167421531,2.5602,142.55,142.5,32.3]
[1724167422031,2.5602,142.55,142.54,3.5069]
[1724167424432,2.56783835,142.56,142.54,3.5069]
[1724167424626,23.6126,142.65,142.53,0.04672306]
[1724167424627,2.704,142.64,142.53,0.04672306]
[1724167424833,2.704,142.64,142.52,32.3]
[1724167424834,32.3,142.62,142.52,32.3]
[1724167425333,3.5058,142.59,142.56,3.5063]
[1724167425733,3.5058,142.59,142.56,0.04699083]
[1724167425734,0.051821,142.59,142.56,0.04699083]
[1724167427031,3.557621,142.59,142.56,3.55329083]
[1724167427233,0.051821,142.59,142.56,0.04699083]
[1724167428028,5.2402,142.64,142.56,32.34699083]
[1724167428228,3.5048,142.63,142.6,3.5054]
[1724167428433,32.3,142.63,142.54,32.3]
[1724167428728,3.5054,142.61,142.58,3.5058]
[1724167428932,3.5054,142.61,142.54,32.3]
[1724167429123,0.04988559,142.61,142.58,0.04553151]
[1724167429330,0.04988559,142.61,142.6,3.5054]
[1724167430722,0.04988559,142.61,142.58,0.04553151]
[1724167431318,0.04988559,142.61,142.58,3.55133151]
[1724167431520,3.55518559,142.61,142.58,3.55133151]
[1724167433028,0.04988559,142.61,142.59,3.5057]
[1724167433235,0.04988559,142.61,142.58,0.04553151]
[1724167433537,229.0,142.76,142.58,0.04553151]
[1724167433538,37.7568,142.69,142.64,3.5044]
[1724167433740,37.7568,142.69,142.6,32.3]
[1724167433741,43.88953052,142.69,142.6,32.3]
[1724167434130,3.5039,142.67,142.63,3.5045]
[1724167434329,32.3,142.67,142.63,3.5045]
[1724167434533,32.3,142.65,142.64,0.04693645]
[1724167434725,32.3,142.65,142.56,32.3]
[1724167435137,35.8043,142.65,142.61,3.505]
[1724167435323,32.3,142.65,142.56,32.3]
[1724167435523,32.3,142.63,142.55,2.5204]
[1724167435727,32.3,142.63,142.61,3.5051]
[1724167436132,32.34906302,142.63,142.6,3.5052]
[1724167436432,46.48273052,142.69,142.59,40.35]
[1724167436638,3.5037,142.67,142.63,3.5045]
[1724167436841,46.48273052,142.69,142.59,40.35]
[1724167437235,46.48273052,142.69,142.6,3.43357162]
[1724167437236,49.98613052,142.69,142.6,3.43357162]
[1724167437442,0.05049001,142.66,142.63,0.0476021]
[1724167437832,0.05049001,142.66,142.64,3.5043]
[1724167438342,0.05049001,142.66,142.63,3.5522021]
[1724167439140,3.55449001,142.66,142.63,3.5522021]
[1724167439639,0.05049001,142.66,142.63,0.0476021]
[1724167440239,40.40049001,142.66,142.63,0.0476021]
[1724167440751,0.05049001,142.66,142.63,0.0476021]
[1724167441247,0.05049001,142.66,142.65,3.5042]
[1724167441442,0.05049001,142.66,142.63,0.0476021]
[1724167441647,0.05049001,142.66,142.64,3.5043]
[1724167441846,0.05049001,142.66,142.63,0.0476021]
[1724167442747,0.05049001,142.66,142.65,3.5042]
[1724167443052,40.35,142.72,142.63,0.0476021]
[1724167443245,43.85374931,142.72,142.67,3.5035]
[1724167443437,3.50374931,142.72,142.67,3.5035]
[1724167443746,45.6253,142.74,142.67,3.5035]
[1724167443944,40.35,142.74,142.67,3.5035]
[1724167444256,0.05082102,142.72,142.69,0.05077448]
[1724167444443,3.5028,142.71,142.69,0.05077448]
[1724167444644,3.57383903,142.72,142.69,0.05077448]
[1724167444645,43.92383903,142.72,142.69,0.05077448]
[1724167445159,3.57383903,142.72,142.69,0.05077448]
[1724167445447,0.05082102,142.72,142.69,0.05077448]
[1724167445948,3.46494128,142.78,142.69,43.95012402]
[1724167446245,40.35,142.75,142.69,0.05077448]
[1724167446433,3.5029,142.69,142.62,43.0587]
[1724167446635,40.35,142.7,142.62,6.26050123]
[1724167446636,43.8545186,142.7,142.62,6.26050123]
[1724167446941,43.8545186,142.7,142.59,40.35]
[1724167447135,2.6911,142.69,142.59,43.9007505]
[1724167447335,0.04823772,142.67,142.65,0.04426454]
[1724167448241,0.04823772,142.67,142.65,3.54816454]
[1724167448545,0.04823772,142.67,142.65,0.04426454]
[1724167449435,0.04823772,142.67,142.65,3.54806454]
[1724167450050,0.04823772,142.67,142.66,3.5037]
[1724167450740,0.04823772,142.67,142.65,0.04426454]
[1724167450741,0.04823772,142.67,142.65,3.54796454]
[1724167450942,0.04823772,142.67,142.65,0.04426454]
[1724167451555,0.04823772,142.67,142.58,43.0503]
[1724167451556,40.35,142.66,142.58,2.7003]
[1724167451853,40.35,142.64,142.54,66.50790212]
[1724167452152,40.35,142.64,142.59,3.5053]
[1724167452354,40.35,142.62,142.53,2.7003]
[1724167452558,0.05228032,142.59,142.56,0.05316115]
[1724167453356,40.35,142.58,142.49,2.6386]
[1724167453551,40.35,142.56,142.46,5.96714957]
[1724167453852,40.35,142.56,142.47,1.18558853]
[1724167454058,2.5718,142.55,142.47,1.18558853]
[1724167454259,2.5718,142.55,142.46,5.1827]
[1724167454260,2.5718,142.55,142.46,2.6386]
[1724167454456,3.5071,142.53,142.49,3.5077]
[1724167454650,0.04865025,142.52,142.49,3.5575492]
[1724167454957,0.04865025,142.52,142.49,0.0498492]
[1724167455158,0.04865025,142.52,142.5,3.5076]
[1724167455660,0.04865025,142.52,142.49,0.0498492]
[1724167456245,0.04865025,142.52,142.51,3.5074]
[1724167456445,43.81998384,142.6,142.51,3.5074]
[1724167456650,42.9182,142.6,142.5,40.35]
[1724167456852,3.5057,142.58,142.54,3.5065]
[1724167457049,46.34870813,142.6,142.5,40.35]
[1724167457647,0.04926473,142.56,142.54,0.05008674]
[1724167459249,40.35,142.58,142.51,3.5073]
[1724167459453,40.35,142.55,142.46,2.6386]
[1724167459649,40.35,142.53,142.47,1.1856649]
[1724167459950,3.5072,142.52,142.42,42.8941]
[1724167460146,0.04890771,142.48,142.46,0.05060466]
[1724167460352,0.04890771,142.48,142.46,1.23640238]
[1724167460353,0.04858827,142.48,142.46,1.23640238]
[1724167460954,0.04858827,142.48,142.47,3.5083]
[1724167461455,0.04858827,142.48,142.46,3.55900466]
[1724167461664,0.04858827,142.48,142.46,0.05060466]
[1724167461957,0.04858827,142.48,142.46,3.55910466]
[1724167462748,0.04858827,142.48,142.46,0.05060466]
[1724167463453,0.04858827,142.48,142.46,3.55920466]
[1724167464053,0.04858827,142.48,142.47,3.5083]
[1724167464754,0.04858827,142.48,142.46,0.05060466]
[1724167464956,40.39858827,142.48,142.46,0.05060466]
[1724167465256,40.39858827,142.48,142.37,43.81753205]
[1724167465257,42.8592,142.47,142.37,43.81753205]
[1724167465462,42.8592,142.47,142.4,3.5101]
[1724167465654,42.8592,142.47,142.37,3.46753205]
[1724167466056,3.509,142.45,142.41,3.5098]
[1724167466356,0.04964854,142.43,142.41,0.04964231]
[1724167466553,0.04964854,142.43,142.42,3.5096]
[1724167466966,0.04964854,142.43,142.41,0.04964231]
[1724167469354,0.04964854,142.43,142.41,3.55924231]
[1724167469554,0.04964854,142.43,142.41,0.04964231]
[1724167470654,0.04964854,142.43,142.42,3.5096]